[Event "Queens Festival Europe 2022"]
[Site "Tornelo"]
[Date "2022.06.19"]
[Round "9.3"]
[White "Grigoryan, Meri"]
[Black "Deak-Sala, Emilia"]
[Result "0-1"]
[ECO "E71"]
[WhiteElo "1993"]
[BlackElo "1883"]
[Annotator "NA RC"]
[PlyCount "56"]
[EventDate "2022.06.19"]
[EventType "swiss"]
[EventCountry "NET"]
[SourceTitle "playchess.com"]
[Source "ChessBase"]
[SourceQuality "1"]
[TimeControl "180+2"]

1. d4 {[%emt 0:00:06]} Nf6 {[%emt 0:00:06]} 2. c4 {[%emt 0:00:01]} g6 {[%emt 0:00:02]} 3. Nc3 {[%emt 0:00:01]} Bg7 {[%emt 0:00:02]} 4. e4 {[%emt 0:00:02]} d6 {[%emt 0:00:02]} 5. h3 {[%emt 0:00:02]} O-O {[%emt 0:00:02]} 6. Nf3 {[%emt 0:00:02]} Nbd7 {[%emt 0:00:03]} 7. Bg5 {[%emt 0:00:01]} c5 {[%emt 0:00:06]} 8. d5 {[%emt 0:00:09]} Qa5 {[%emt 0:00:19]} 9. Qd2 {[%emt 0:00:09]} a6 {[%emt 0:00:38]} 10. Bd3 {[%emt 0:00:05]} Rb8 {[%emt 0:00:06]} 11. a4 {[%emt 0:00:18]} Qc7 {[%emt 0:00:28]} 12. O-O {[%emt 0:00:02]} b6 {[%emt 0:00:05]} 13. Bh6 {[%emt 0:00:08]} Nh5 {[%emt 0:00:23]} 14. g4 {[%emt 0:00:14]} Nhf6 {[%emt 0:00:05]} 15. Bxg7 {[%emt 0:00:34]} Kxg7 {[%emt 0:00:02]} 16. Kg2 {[%emt 0:00:11]} Rh8 {[%emt 0:00:23]} 17. Be2 {[%emt 0:00:02]} Nf8 {[%emt 0:00:03]} 18. Nh2 {[%emt 0:00:05]} h5 {[%emt 0:00:03]} 19. g5 {[%emt 0:00:09]} N6h7 {[%emt 0:00:06]} 20. f4 {[%emt 0:00:02]} e6 {[%emt 0:00:03]} 21. dxe6 {[%emt 0:00:33]} Bxe6 {[%emt 0:00:07]} 22. Nd5 {[%emt 0:00:11]} Bxd5 {[%emt 0:00:02]} 23. Qxd5 {[%emt 0:00:05]} Ne6 {[%emt 0:00:04]} 24. h4 {[%emt 0:00:09]} Rhe8 {[%emt 0:00:09]} 25. f5 {[%emt 0:00:01]} Nd4 {[%emt 0:00:02]} 26. fxg6 {[%emt 0:00:12]} fxg6 {[%emt 0:00:04]} 27. Rf6 {[%emt 0:00:16]} Nxf6 {[%emt 0:00:03]} 28. gxf6+ {[%emt 0:00:02]} Kh7 {[%emt 0:00:02]} 0-1

[Event "Queens Festival Europe 2022"]
[Site "Tornelo"]
[Date "2022.06.19"]
[Round "9.3"]
[White "Vukosavljevic, Tatjana"]
[Black "Vicze, Zsofia"]
[Result "0-1"]
[ECO "A12"]
[WhiteElo "1758"]
[BlackElo "1749"]
[Annotator "NA RC"]
[PlyCount "72"]
[EventDate "2022.06.19"]
[EventType "swiss"]
[EventCountry "NET"]
[SourceTitle "playchess.com"]
[Source "ChessBase"]
[SourceQuality "1"]
[TimeControl "180+2"]

1. Nf3 {[%emt 0:00:02]} d5 {[%emt 0:00:04]} 2. g3 {[%emt 0:00:02]} c6 {[%emt 0:00:02]} 3. Bg2 {[%emt 0:00:01]} Bg4 {[%emt 0:00:02]} 4. O-O {[%emt 0:00:02]} Nf6 {[%emt 0:00:01]} 5. d3 {[%emt 0:00:01]} e6 {[%emt 0:00:03]} 6. b3 {[%emt 0:00:02]} Be7 {[%emt 0:00:03]} 7. Bb2 {[%emt 0:00:01]} O-O {[%emt 0:00:01]} 8. c4 {[%emt 0:00:02]} Nbd7 {[%emt 0:00:02]} 9. Nbd2 {[%emt 0:00:01]} Re8 {[%emt 0:00:04]} 10. a3 {[%emt 0:00:03]} a5 {[%emt 0:00:03]} 11. Qc2 {[%emt 0:00:04]} Nf8 {[%emt 0:00:07]} 12. Bc3 {[%emt 0:00:04]} Ng6 {[%emt 0:00:21]} 13. b4 {[%emt 0:00:04]} axb4 {[%emt 0:00:02]} 14. axb4 {[%emt 0:00:03]} Qd7 {[%emt 0:00:02]} 15. Qb2 {[%emt 0:00:09]} Qc7 {[%emt 0:00:17]} 16. b5 {[%emt 0:00:05]} Reb8 {[%emt 0:00:06]} 17. b6 {[%emt 0:00:36]} Qd7 {[%emt 0:00:04]} 18. Ra7 {[%emt 0:00:16]} Rxa7 {[%emt 0:00:11]} 19. bxa7 {[%emt 0:00:02]} Ra8 {[%emt 0:00:01]} 20. Ra1 {[%emt 0:00:06]} Qc7 {[%emt 0:00:18]} 21. e3 {[%emt 0:00:26]} b6 {[%emt 0:00:07]} 22. Qa2 {[%emt 0:00:07]} Ne8 {[%emt 0:00:17]} 23. Nd4 {[%emt 0:00:11]} Bf6 {[%emt 0:00:13]} 24. Qa4 {[%emt 0:00:23]} Ne7 {[%emt 0:00:09]} 25. h3 {[%emt 0:00:07]} Bh5 {[%emt 0:00:08]} 26. Qa3 {[%emt 0:00:22]} Bg6 {[%emt 0:00:04]} 27. Bb2 {[%emt 0:00:04]} Nd6 {[%emt 0:00:10]} 28. cxd5 {[%emt 0:00:02]} exd5 {[%emt 0:00:20]} 29. e4 {[%emt 0:00:06]} dxe4 {[%emt 0:00:08]} 30. dxe4 {[%emt 0:00:06]} Ndc8 {[%emt 0:00:07]} 31. e5 {[%emt 0:00:19]} Bxe5 {[%emt 0:00:13]} 32. Nc4 {[%emt 0:00:05]} Bxd4 {[%emt 0:00:05]} 33. Bxd4 {[%emt 0:00:02]} Rxa7 {[%emt 0:00:03]} 34. Qb2 {[%emt 0:00:02]} Rxa1+ {[%emt 0:00:03]} 35. Qxa1 {[%emt 0:00:01]} b5 {[%emt 0:00:03]} 36. Nd2 {[%emt 0:00:03]} f6 {[%emt 0:00:02]} 0-1

[Event "Queens Festival Europe 2022"]
[Site "Tornelo"]
[Date "2022.06.19"]
[Round "9.3"]
[White "Vujovic, Vera"]
[Black "Catabay, Mae Katelyn Rose"]
[Result "0-1"]
[ECO "B09"]
[WhiteElo "1353"]
[BlackElo "1321"]
[Annotator "NA RC"]
[PlyCount "138"]
[EventDate "2022.06.19"]
[EventType "swiss"]
[EventCountry "NET"]
[SourceTitle "playchess.com"]
[Source "ChessBase"]
[SourceQuality "1"]
[TimeControl "180+2"]

1. e4 {[%emt 0:00:02]} d6 {[%emt 0:00:09]} 2. d4 {[%emt 0:00:02]} Nf6 {[%emt 0:00:03]} 3. Nc3 {[%emt 0:00:02]} g6 {[%emt 0:00:02]} 4. f4 {[%emt 0:00:02]} Bg7 {[%emt 0:00:02]} 5. Nf3 {[%emt 0:00:01]} Nbd7 {[%emt 0:00:02]} 6. Bc4 {[%emt 0:00:02]} e6 {[%emt 0:00:07]} 7. O-O {[%emt 0:00:06]} O-O {[%emt 0:00:03]} 8. Ng5 {[%emt 0:00:04]} h6 {[%emt 0:00:03]} 9. Nxe6 {[%emt 0:01:15]} fxe6 {[%emt 0:00:08]} 10. Bxe6+ {[%emt 0:00:02]} Kh7 {[%emt 0:00:02]} 11. f5 {[%emt 0:00:04]} g5 {[%emt 0:00:12]} 12. Qf3 {[%emt 0:00:05]} Qe7 {[%emt 0:00:03]} 13. Qh3 {[%emt 0:00:05]} Ng8 {[%emt 0:00:10]} 14. Qh5 {[%emt 0:00:32]} Bxd4+ {[%emt 0:00:17]} 15. Kh1 {[%emt 0:00:04]} Qg7 {[%emt 0:00:02]} 16. Ne2 {[%emt 0:00:30]} Be5 {[%emt 0:00:13]} 17. Bxg8+ {[%emt 0:00:16]} Rxg8 {[%emt 0:00:05]} 18. Rf3 {[%emt 0:00:04]} Nf6 {[%emt 0:00:02]} 19. Qg6+ {[%emt 0:00:04]} Qxg6 {[%emt 0:00:02]} 20. fxg6+ {[%emt 0:00:01]} Kxg6 {[%emt 0:00:02]} 21. c3 {[%emt 0:00:03]} Bg4 {[%emt 0:00:03]} 22. Re3 {[%emt 0:00:03]} Bxe2 {[%emt 0:00:03]} 23. Rxe2 {[%emt 0:00:01]} Rgf8 {[%emt 0:00:02]} 24. g3 {[%emt 0:00:05]} Ng4 {[%emt 0:00:02]} 25. Kg2 {[%emt 0:00:05]} h5 {[%emt 0:00:06]} 26. h3 {[%emt 0:00:01]} Nh6 {[%emt 0:00:02]} 27. Be3 {[%emt 0:00:02]} Rf7 {[%emt 0:00:05]} 28. Bd4 {[%emt 0:00:02]} Bxd4 {[%emt 0:00:05]} 29. cxd4 {[%emt 0:00:01]} Raf8 {[%emt 0:00:02]} 30. Rc1 {[%emt 0:00:02]} c6 {[%emt 0:00:02]} 31. d5 {[%emt 0:00:02]} c5 {[%emt 0:00:03]} 32. Rcc2 {[%emt 0:00:03]} Rf3 {[%emt 0:00:03]} 33. e5 {[%emt 0:00:01]} h4 {[%emt 0:00:07]} 34. gxh4 {[%emt 0:00:04]} gxh4 {[%emt 0:00:01]} 35. exd6 {[%emt 0:00:02]} Rg3+ {[%emt 0:00:02]} 36. Kh2 {[%emt 0:00:01]} Nf5 {[%emt 0:00:19]} 37. d7 {[%emt 0:00:05]} Rd8 {[%emt 0:00:02]} 38. Re6+ {[%emt 0:00:03]} Kg5 {[%emt 0:00:05]} 39. Rf2 {[%emt 0:00:02]} Rxd7 {[%emt 0:00:02]} 40. Re5 {[%emt 0:00:01]} Rf7 {[%emt 0:00:04]} 41. d6 {[%emt 0:00:01]} Kg6 {[%emt 0:00:24]} 42. Rxc5 {[%emt 0:00:04]} Nxd6 {[%emt 0:00:04]} 43. Re2 {[%emt 0:00:02]} Nf5 {[%emt 0:00:07]} 44. Re6+ {[%emt 0:00:02]} Kg5 {[%emt 0:00:01]} 45. Re8 {[%emt 0:00:04]} Kf4 {[%emt 0:00:07]} 46. Re1 {[%emt 0:00:03]} Rf3 {[%emt 0:00:13]} 47. Rc4+ {[%emt 0:00:02]} Kg5 {[%emt 0:00:03]} 48. Rg4+ {[%emt 0:00:02]} Kh5 {[%emt 0:00:03]} 49. Re8 {[%emt 0:00:02]} Rd7 {[%emt 0:00:11]} 50. Re2 {[%emt 0:00:04]} Rdd3 {[%emt 0:00:03]} 51. Kg2 {[%emt 0:00:02]} Rxh3 {[%emt 0:00:03]} 52. Rf4 {[%emt 0:00:03]} Rdg3+ {[%emt 0:00:03]} 53. Kf2 {[%emt 0:00:01]} Rh2+ {[%emt 0:00:01]} 54. Ke1 {[%emt 0:00:01]} Rg1+ {[%emt 0:00:08]} 55. Kd2 {[%emt 0:00:02]} Rxe2+ {[%emt 0:00:01]} 56. Kxe2 {[%emt 0:00:01]} Ng3+ {[%emt 0:00:01]} 57. Kd3 {[%emt 0:00:03]} h3 {[%emt 0:00:02]} 58. Rf8 {[%emt 0:00:02]} Kg4 {[%emt 0:00:02]} 59. Rg8+ {[%emt 0:00:02]} Kf3 {[%emt 0:00:02]} 60. Rf8+ {[%emt 0:00:01]} Kg2 {[%emt 0:00:01]} 61. Ke3 {[%emt 0:00:02]} h2 {[%emt 0:00:02]} 62. Rg8 {[%emt 0:00:02]} h1=Q {[%emt 0:00:02]} 63. Rd8 {[%emt 0:00:02]} Qh6+ {[%emt 0:00:03]} 64. Kd3 {[%emt 0:00:01]} Rd1+ {[%emt 0:00:05]} 65. Kc2 {[%emt 0:00:02]} Rxd8 {[%emt 0:00:01]} 66. b4 {[%emt 0:00:02]} Qc6+ {[%emt 0:00:03]} 67. Kb3 {[%emt 0:00:02]} Rd3+ {[%emt 0:00:02]} 68. Kb2 {[%emt 0:00:01]} Qc3+ {[%emt 0:00:02]} 69. Kb1 {[%emt 0:00:01]} Rd1# {[%emt 0:00:02]} 0-1

[Event "Queens Festival Europe 2022"]
[Site "Tornelo"]
[Date "2022.06.19"]
[Round "9.4"]
[White "Amrayeva, Aytan"]
[Black "Ibrahimova, Sabina"]
[Result "1-0"]
[ECO "A16"]
[WhiteElo "2143"]
[BlackElo "2146"]
[Annotator "NA RC"]
[PlyCount "61"]
[EventDate "2022.06.19"]
[EventType "swiss"]
[EventCountry "NET"]
[SourceTitle "playchess.com"]
[Source "ChessBase"]
[SourceQuality "1"]
[TimeControl "180+2"]

1. c4 {[%emt 0:00:02]} Nf6 {[%emt 0:00:05]} 2. Nc3 {[%emt 0:00:02]} g6 {[%emt 0:00:02]} 3. e4 {[%emt 0:00:02]} d6 {[%emt 0:00:02]} 4. g3 {[%emt 0:00:04]} Bg7 {[%emt 0:00:02]} 5. h3 {[%emt 0:00:01]} O-O {[%emt 0:00:04]} 6. Bg2 {[%emt 0:00:02]} c6 {[%emt 0:00:09]} 7. Nge2 {[%emt 0:00:03]} a6 {[%emt 0:00:02]} 8. a4 {[%emt 0:00:04]} Nfd7 {[%emt 0:00:05]} 9. O-O {[%emt 0:00:02]} e6 {[%emt 0:00:46]} 10. Kh2 {[%emt 0:00:05]} d5 {[%emt 0:00:02]} 11. cxd5 {[%emt 0:00:04]} cxd5 {[%emt 0:00:07]} 12. exd5 {[%emt 0:00:02]} exd5 {[%emt 0:00:01]} 13. Nxd5 {[%emt 0:00:01]} Nc6 {[%emt 0:00:02]} 14. d4 {[%emt 0:00:02]} Nb6 {[%emt 0:00:33]} 15. Ndc3 {[%emt 0:00:13]} Nxd4 {[%emt 0:00:06]} 16. Nxd4 {[%emt 0:00:13]} Bxd4 {[%emt 0:00:05]} 17. Bh6 {[%emt 0:00:02]} Re8 {[%emt 0:00:05]} 18. Ne4 {[%emt 0:00:08]} Bf5 {[%emt 0:00:38]} 19. Nc3 {[%emt 0:00:11]} Nc4 {[%emt 0:00:06]} 20. Nd5 {[%emt 0:00:23]} Bxb2 {[%emt 0:00:16]} 21. Qb3 {[%emt 0:00:29]} Bxa1 {[%emt 0:00:14]} 22. Rxa1 {[%emt 0:00:02]} Ne5 {[%emt 0:00:04]} 23. f4 {[%emt 0:00:05]} Nc6 {[%emt 0:00:03]} 24. Qc3 {[%emt 0:00:06]} f6 {[%emt 0:00:05]} 25. Nxf6+ {[%emt 0:00:02]} Kf7 {[%emt 0:00:02]} 26. Nxh7 {[%emt 0:00:28]} Qd4 {[%emt 0:00:03]} 27. Qb3+ {[%emt 0:00:13]} Be6 {[%emt 0:00:02]} 28. Qxb7+ {[%emt 0:00:04]} Re7 {[%emt 0:00:02]} 29. Ng5+ {[%emt 0:00:03]} Kf6 {[%emt 0:00:03]} 30. Qxa8 {[%emt 0:00:12]} Qxa1 {[%emt 0:00:02]} 31. Qxc6 {[%emt 0:00:01]} 1-0

[Event "Queens Festival Europe 2022"]
[Site "Tornelo"]
[Date "2022.06.19"]
[Round "9.4"]
[White "Bordin, Silvia"]
[Black "Sava, Ana-Maria"]
[Result "0-1"]
[ECO "B90"]
[WhiteElo "1991"]
[BlackElo "1916"]
[Annotator "NA RC"]
[PlyCount "50"]
[EventDate "2022.06.19"]
[EventType "swiss"]
[EventCountry "NET"]
[SourceTitle "playchess.com"]
[Source "ChessBase"]
[SourceQuality "1"]
[TimeControl "180+2"]

1. e4 {[%emt 0:00:02]} c5 {[%emt 0:00:05]} 2. Nf3 {[%emt 0:00:02]} d6 {[%emt 0:00:01]} 3. d4 {[%emt 0:00:01]} cxd4 {[%emt 0:00:02]} 4. Nxd4 {[%emt 0:00:00]} Nf6 {[%emt 0:00:02]} 5. Nc3 {[%emt 0:00:02]} a6 {[%emt 0:00:01]} 6. h4 {[%emt 0:00:01]} Nc6 {[%emt 0:00:08]} 7. h5 {[%emt 0:00:16]} h6 {[%emt 0:00:04]} 8. Bc4 {[%emt 0:00:10]} Bg4 {[%emt 0:00:26]} 9. Be2 {[%emt 0:00:05]} Bxe2 {[%emt 0:00:14]} 10. Ndxe2 {[%emt 0:00:01]} e6 {[%emt 0:00:06]} 11. Be3 {[%emt 0:00:04]} Ne5 {[%emt 0:00:14]} 12. f3 {[%emt 0:00:05]} Be7 {[%emt 0:00:06]} 13. Bd4 {[%emt 0:00:05]} Nc6 {[%emt 0:00:07]} 14. Be3 {[%emt 0:00:03]} Qc7 {[%emt 0:00:03]} 15. Nc1 {[%emt 0:00:16]} Rd8 {[%emt 0:00:07]} 16. Nd3 {[%emt 0:00:03]} d5 {[%emt 0:00:07]} 17. exd5 {[%emt 0:00:02]} Nxd5 {[%emt 0:00:04]} 18. Nxd5 {[%emt 0:00:04]} Rxd5 {[%emt 0:00:04]} 19. Qe2 {[%emt 0:00:05]} Qa5+ {[%emt 0:00:32]} 20. Bd2 {[%emt 0:00:03]} Qc7 {[%emt 0:00:05]} 21. O-O-O {[%emt 0:00:07]} Nd4 {[%emt 0:00:03]} 22. Bf4 {[%emt 0:00:33]} Nxe2+ {[%emt 0:00:03]} 23. Kb1 {[%emt 0:00:00]} Nxf4 {[%emt 0:00:02]} 24. Nxf4 {[%emt 0:00:03]} Rxd1+ {[%emt 0:00:03]} 25. Rxd1 {[%emt 0:00:02]} Qxf4 {[%emt 0:00:01]} 0-1

[Event "Queens Festival Europe 2022"]
[Site "Tornelo"]
[Date "2022.06.19"]
[Round "9.4"]
[White "Thornton, Filipina"]
[Black "Subramanian, Anusha"]
[Result "1-0"]
[ECO "D15"]
[WhiteElo "1660"]
[BlackElo "1671"]
[Annotator "NA RC"]
[PlyCount "63"]
[EventDate "2022.06.19"]
[EventType "swiss"]
[EventCountry "NET"]
[SourceTitle "playchess.com"]
[Source "ChessBase"]
[SourceQuality "1"]
[TimeControl "180+2"]

1. d4 {[%emt 0:00:02]} d5 {[%emt 0:00:04]} 2. c4 {[%emt 0:00:02]} c6 {[%emt 0:00:02]} 3. Nf3 {[%emt 0:00:01]} Nf6 {[%emt 0:00:01]} 4. Nc3 {[%emt 0:00:01]} dxc4 {[%emt 0:00:01]} 5. e4 {[%emt 0:00:03]} b5 {[%emt 0:00:03]} 6. e5 {[%emt 0:00:06]} Nd5 {[%emt 0:00:02]} 7. a4 {[%emt 0:00:03]} Nxc3 {[%emt 0:00:10]} 8. bxc3 {[%emt 0:00:03]} e6 {[%emt 0:00:04]} 9. Bg5 {[%emt 0:00:10]} Be7 {[%emt 0:00:03]} 10. Bxe7 {[%emt 0:00:10]} Qxe7 {[%emt 0:00:02]} 11. Qb1 {[%emt 0:00:01]} a6 {[%emt 0:00:14]} 12. Be2 {[%emt 0:00:20]} Bb7 {[%emt 0:00:07]} 13. O-O {[%emt 0:00:02]} O-O {[%emt 0:00:02]} 14. Nd2 {[%emt 0:00:02]} Nd7 {[%emt 0:00:03]} 15. Ne4 {[%emt 0:00:01]} Nb6 {[%emt 0:00:10]} 16. Nd6 {[%emt 0:00:07]} Nd5 {[%emt 0:00:03]} 17. Rc1 {[%emt 0:00:11]} Rfb8 {[%emt 0:00:17]} 18. a5 {[%emt 0:00:09]} Qg5 {[%emt 0:00:25]} 19. Bf3 {[%emt 0:00:07]} Qe7 {[%emt 0:00:44]} 20. Qe4 {[%emt 0:00:03]} Qc7 {[%emt 0:00:04]} 21. Qg4 {[%emt 0:00:06]} Ne7 {[%emt 0:00:27]} 22. Qf4 {[%emt 0:00:06]} Ng6 {[%emt 0:00:04]} 23. Qg3 {[%emt 0:00:09]} Qe7 {[%emt 0:00:08]} 24. Re1 {[%emt 0:00:07]} Nh4 {[%emt 0:00:14]} 25. Bh5 {[%emt 0:00:07]} Nf5 {[%emt 0:00:06]} 26. Bxf7+ {[%emt 0:00:27]} Kh8 {[%emt 0:00:05]} 27. Nxf5 {[%emt 0:00:07]} exf5 {[%emt 0:00:04]} 28. e6 {[%emt 0:00:05]} g6 {[%emt 0:00:02]} 29. Qh3 {[%emt 0:00:06]} Kg7 {[%emt 0:00:02]} 30. Re5 {[%emt 0:00:08]} Ra7 {[%emt 0:00:03]} 31. Rae1 {[%emt 0:00:03]} Bc8 {[%emt 0:00:02]} 32. Qf3 {[%emt 0:00:13]} 1-0

[Event "Queens Festival Europe 2022"]
[Site "Tornelo"]
[Date "2022.06.19"]
[Round "9.4"]
[White "Ismayilova, Khanim"]
[Black "Aydogan, Arya"]
[Result "0-1"]
[ECO "D27"]
[WhiteElo "1647"]
[BlackElo "1409"]
[Annotator "NA RC"]
[PlyCount "116"]
[EventDate "2022.06.19"]
[EventType "swiss"]
[EventCountry "NET"]
[SourceTitle "playchess.com"]
[Source "ChessBase"]
[SourceQuality "1"]
[TimeControl "180+2"]

1. c4 {[%emt 0:00:02]} e6 {[%emt 0:00:04]} 2. Nc3 {[%emt 0:00:02]} d5 {[%emt 0:00:01]} 3. e3 {[%emt 0:00:00]} Nf6 {[%emt 0:00:04]} 4. d4 {[%emt 0:00:01]} a6 {[%emt 0:00:05]} 5. Nf3 {[%emt 0:00:01]} dxc4 {[%emt 0:00:03]} 6. Bxc4 {[%emt 0:00:02]} b5 {[%emt 0:00:02]} 7. Be2 {[%emt 0:00:07]} c5 {[%emt 0:00:02]} 8. O-O {[%emt 0:00:01]} Be7 {[%emt 0:00:02]} 9. b3 {[%emt 0:00:02]} Bb7 {[%emt 0:00:02]} 10. Bb2 {[%emt 0:00:01]} O-O {[%emt 0:00:01]} 11. Rc1 {[%emt 0:00:02]} Nbd7 {[%emt 0:00:02]} 12. Qd2 {[%emt 0:00:03]} Qb6 {[%emt 0:00:07]} 13. Rfd1 {[%emt 0:00:05]} Rfd8 {[%emt 0:00:04]} 14. h3 {[%emt 0:00:17]} Rac8 {[%emt 0:00:12]} 15. Rc2 {[%emt 0:00:12]} Nf8 {[%emt 0:00:08]} 16. Qc1 {[%emt 0:00:08]} h6 {[%emt 0:00:28]} 17. dxc5 {[%emt 0:00:16]} Rxc5 {[%emt 0:00:23]} 18. Rxd8 {[%emt 0:00:04]} Qxd8 {[%emt 0:00:06]} 19. Rd2 {[%emt 0:00:03]} Qb6 {[%emt 0:00:09]} 20. Qd1 {[%emt 0:00:04]} Rc8 {[%emt 0:00:13]} 21. Nd4 {[%emt 0:00:04]} Rd8 {[%emt 0:00:02]} 22. Bf3 {[%emt 0:00:02]} Bxf3 {[%emt 0:00:02]} 23. Nxf3 {[%emt 0:00:02]} Rxd2 {[%emt 0:00:03]} 24. Qxd2 {[%emt 0:00:00]} Qd8 {[%emt 0:00:02]} 25. Qc2 {[%emt 0:00:03]} Nd5 {[%emt 0:00:04]} 26. Ne4 {[%emt 0:00:05]} Nb4 {[%emt 0:00:03]} 27. Qc3 {[%emt 0:00:08]} f6 {[%emt 0:00:10]} 28. a3 {[%emt 0:00:08]} Nd5 {[%emt 0:00:05]} 29. Qc6 {[%emt 0:00:06]} Qb6 {[%emt 0:00:05]} 30. Qe8 {[%emt 0:00:25]} Qd8 {[%emt 0:00:10]} 31. Qc6 {[%emt 0:00:09]} Qb6 {[%emt 0:00:02]} 32. Qa8 {[%emt 0:00:04]} Nc7 {[%emt 0:00:09]} 33. Qc8 {[%emt 0:00:08]} e5 {[%emt 0:00:06]} 34. Nh4 {[%emt 0:00:14]} Nce6 {[%emt 0:00:15]} 35. Nf5 {[%emt 0:00:05]} Bd8 {[%emt 0:00:07]} 36. Ned6 {[%emt 0:00:10]} a5 {[%emt 0:00:03]} 37. Nb7 {[%emt 0:00:14]} Qc7 {[%emt 0:00:03]} 38. Qa8 {[%emt 0:00:07]} Kh7 {[%emt 0:00:03]} 39. Nbd6 {[%emt 0:00:04]} Be7 {[%emt 0:00:03]} 40. Qa6 {[%emt 0:00:07]} Bxd6 {[%emt 0:00:03]} 41. Nxd6 {[%emt 0:00:02]} Qc2 {[%emt 0:00:02]} 42. Qxb5 {[%emt 0:00:17]} Qxb2 {[%emt 0:00:02]} 43. Qxa5 {[%emt 0:00:04]} Qxb3 {[%emt 0:00:02]} 44. Qa7 {[%emt 0:00:02]} Qd1+ {[%emt 0:00:02]} 45. Kh2 {[%emt 0:00:02]} Qxd6 {[%emt 0:00:01]} 46. Qb7 {[%emt 0:00:02]} e4+ {[%emt 0:00:03]} 47. Kh1 {[%emt 0:00:02]} Nc5 {[%emt 0:00:02]} 48. Qa7 {[%emt 0:00:03]} Nfd7 {[%emt 0:00:01]} 49. a4 {[%emt 0:00:01]} Qa6 {[%emt 0:00:02]} 50. Qc7 {[%emt 0:00:05]} Qxa4 {[%emt 0:00:03]} 51. Qf4 {[%emt 0:00:01]} Qd1+ {[%emt 0:00:02]} 52. Kh2 {[%emt 0:00:03]} Qd5 {[%emt 0:00:01]} 53. Qg3 {[%emt 0:00:01]} Qe5 {[%emt 0:00:01]} 54. f4 {[%emt 0:00:05]} exf3 {[%emt 0:00:01]} 55. gxf3 {[%emt 0:00:02]} Qxg3+ {[%emt 0:00:02]} 56. Kxg3 {[%emt 0:00:02]} g5 {[%emt 0:00:04]} 57. e4 {[%emt 0:00:01]} Ne5 {[%emt 0:00:02]} 58. f4 {[%emt 0:00:02]} Nxe4+ {[%emt 0:00:01]} 0-1